Cogmind - Beta 9.6 @@@ ROGUE MODE // 2020.06.27 @ 11:38:03 Player: Trione Result: Destroyed by G-47 Trooper with Particle Gun Performance ------------- Evolutions (1) 500 Regions Visited (6) 1200 Robots Destroyed (121) 605 Value Destroyed (2012) 2012 Prototype IDs (5) 100 Alien Tech Used (0) 0 Bonus (187) 187 TOTAL SCORE: 4604 Bonus ------- High Alert Combat Kills 271 Follower Combat Kills 77 Friendly Fire -161 Cogmind --------- Core Integrity 0/400 Matter 263/300 Energy 263/265 System Corruption 5% Temperature Cool (9) Movement Rolling (100) Ox2 Location -8/Mines Parts ------- > --- POWER (1) -------- Improved Ion Engine > --- PROPULSION (2) --- Wheel Wheel > --- UTILITY (4) ------ Large Storage Unit Large Storage Unit Armor Integrity Analyzer Advanced Weapon Cycler > --- WEAPON (2) ------- Advanced Beam Cannon Advanced Beam Cannon > --- INVENTORY (16) --- Light Angular Momentum Engine Reinforced Fission Core Improved Treads Wheel Compact Wheel Medium Storage Unit High-capacity Storage Unit Experimental Targeting Computer Improved Armor Integrity Analyzer Integration Mediator Improved Medium Laser 8R-AWN's Boregun EMP Blaster Rocket Launcher Rocket Launcher Deploy-a-Sentry Peak State ------------ > --- POWER ------------ Improved Ion Engine > --- PROPULSION ------- Aluminum Leg Makeshift Leg > --- UTILITY ---------- Large Storage Unit Large Storage Unit Armor Integrity Analyzer Advanced Weapon Cycler > --- WEAPON ----------- Advanced Beam Cannon 8R-AWN's Boregun > --- INVENTORY -------- Light Angular Momentum Engine Reinforced Fission Core Improved Treads Makeshift Leg Medium Storage Unit High-capacity Storage Unit Experimental Targeting Computer Improved Armor Integrity Analyzer Integration Mediator Improved Medium Laser Advanced Beam Cannon EMP Blaster Rocket Launcher Rocket Launcher Deploy-a-Sentry [Rating: 37] Favorites ----------- Power Heavy Ion Engine Engine Heavy Ion Engine Propulsion Wheel Treads Improved Treads Leg Makeshift Leg Wheel Wheel Utility Large Storage Unit Device Advanced Weapon Cycler Storage Large Storage Unit Processor Armor Integrity Analyzer Protection Heavy Armor Plating Weapon Improved Assault Rifle Energy Gun Small Laser Energy Cannon Advanced Beam Cannon Ballistic Gun Improved Assault Rifle Ballistic Cannon Light Cannon Launcher EMP Blaster Build | -11 -10 -10 -9 -9 -9 -8 ------- Run | Scr Mat Min Mat Min Exi Min Slots Evolved 2 | . . . 2 . . . Power . | . . . . . . . Propulsion . | . . . . . . . Utility 2 | . . . 2 . . . Weapon . | . . . . . . . Parts Attached 102 | 6 13 . 51 7 21 4 Power 9 | 1 2 . 5 . 1 . Engine 9 | 1 2 . 5 . 1 . Core . | . . . . . . . Reactor . | . . . . . . . Propulsion 33 | 2 6 . 12 5 6 2 Treads 13 | . 3 . 5 2 3 . Leg 3 | . . . . . 3 . Wheel 17 | 2 3 . 7 3 . 2 Hover . | . . . . . . . Flight . | . . . . . . . Utility 13 | 1 2 . 4 . 6 . Device 3 | . . . . . 3 . Storage 4 | 1 2 . . . 1 . Processor 1 | . . . . . 1 . Hackware . | . . . . . . . Protection 5 | . . . 4 . 1 . Artifact . | . . . . . . . Weapon 47 | 2 3 . 30 2 8 2 Energy Gun 2 | . 1 . 1 . . . Energy Cannon 5 | . . . 2 . 1 2 Ballistic Gun 24 | 2 1 . 17 1 3 . Ballistic Cannon 1 | . 1 . . . . . Launcher 15 | . . . 10 1 4 . Special Weapon . | . . . . . . . Impact Weapon . | . . . . . . . Slashing Weapon . | . . . . . . . Piercing Weapon . | . . . . . . . Special Melee Weapon . | . . . . . . . Unidentified Prototypes 5 | . . . 4 . 1 . Parts Lost 20 | . 6 . 4 . 10 . Power 3 | . 2 . . . 1 . Propulsion 7 | . 1 . 2 . 4 . Utility 3 | . . . 1 . 2 . Weapon 7 | . 3 . 1 . 3 . Highest Loss Streak 7 | . 2 . 1 . 7 . Average Slot Usage (%) 91 | . 93 100 86 88 92 100 Engine 11 | . 13 14 10 11 10 11 Treads 1 | . 2 . . . 4 . Leg 2 | . . . . . 11 13 Wheel 18 | . 25 28 21 21 3 9 Device 2 | . . . . . 9 11 Storage 22 | . 21 28 22 22 19 22 Processor 1 | . . . . . 8 11 Protection 5 | . . . 10 11 2 . Energy Cannon 2 | . . . 4 . 3 13 Ballistic Gun 16 | . 20 14 15 21 13 4 Ballistic Cannon 2 | . 4 14 . . . . Launcher 1 | . . . . . 5 4 Naked Turns . | . . . . . . . Heaviest Build 78 | 10 58 58 78 77 77 50 Greatest Support 46 | 26 40 26 46 20 43 30 Greatest Overweight (x) 7 | . 2 2 4 3 7 2 Average Overweight (x) 2 | . . 2 2 3 1 1 Largest Inventory Capacity 18 | 6 18 18 18 18 18 16 Average Capacity 16 | 5 12 18 18 18 14 16 Most Carried 18 | 5 13 13 18 18 18 16 Average Carried 14 | 3 9 12 17 17 12 15 Final Capacity 18 | 6 18 18 18 18 16 16 Final Carried 18 | 5 12 13 18 18 15 16 Class Distribution -------------------- 88% | Mutant 11% | Scavenger-Mutant Dominant Class ---------------- Mutant | -10/Materials Mutant | -10/Mines Mutant | -9/Materials Mutant | -9/Mines Mutant | -9/Exiles Mutant | -8/Mines Resources | -11 -10 -10 -9 -9 -9 -8 ----------- Run | Scr Mat Min Mat Min Exi Min Matter Collected 2866 | 280 327 7 1092 344 583 233 Remotely . | . . . . . . . Salvage Created 3314 | 64 613 . 1512 462 448 215 Parts 287 | 3 42 . 126 36 67 13 Haulers Intercepted 6 | . 2 . 4 . . . Recyclers Shooed 1 | . 1 . . . . . Parts Field Recycled . | . . . . . . . Retrieved Matter . | . . . . . . . Parts Self-Destructed . | . . . . . . . Prevented . | . . . . . . . Kills | -11 -10 -10 -9 -9 -9 -8 ------- Run | Scr Mat Min Mat Min Exi Min Combat Hostiles Destroyed 72 | . 15 . 42 9 6 . Guns 35 | . 13 . 15 7 . . Cannons 8 | . 2 . 5 . 1 . AOE 29 | . . . 22 2 5 . Classes Destroyed 13 | 1 5 . 4 . 3 . Worker 11 | . 2 . 4 2 . 3 Builder 7 | . . . 5 1 . 1 Tunneler 4 | . . . 1 3 . . Hauler 6 | . 2 . 4 . . . Recycler 4 | 1 . . . 1 . 2 Turret 1 | . . . . . 1 . Watcher 5 | . 1 . 4 . . . Swarmer 30 | . 6 . 19 5 . . Grunt 25 | . 9 . 12 4 . . Brawler 1 | . . . 1 . . . Sentry 10 | . . . 10 . . . Zionite 7 | . . . . . 7 . Assembled 5 | . . . . . 5 . Thug 1 | . . . . 1 . . Best Kill Streak 8 | 1 7 . 8 5 6 3 Combat Bots Only 7 | . 7 . 7 4 5 . Max Kills in Single Turn 4 | 1 2 . 4 2 3 1 Gunslinging 1 | . 1 . 1 . . . Exploded 3 | . . . 3 1 3 . Melee . | . . . . . . . Uniques/NPCs Destroyed 2 | . . . . . 2 . 8R-AWN (-9/Exiles) EX-DEC (-9/Exiles) EX-HEX (-9/Exiles) EX-BIN (-9/Exiles) Combat | -11 -10 -10 -9 -9 -9 -8 -------- Run | Scr Mat Min Mat Min Exi Min Damage Taken 4524 | . 916 9 1368 305 1908 18 Core 614 | . 204 . 97 29 266 18 Absorbed by Shields . | . . . . . . . Core Remaining (%) 59 | 100 . 18 . . . . Volleys Fired 327 | 5 52 . 101 33 122 14 Largest 2 | 2 2 . 2 2 2 2 Hottest 136 | 40 60 . 124 46 91 136 Shots Fired 506 | 10 101 . 172 62 138 23 Gun 384 | 10 92 . 115 58 104 5 Cannon 79 | . 9 . 35 . 17 18 Launcher 43 | . . . 22 4 17 . Special . | . . . . . . . Kinetic 371 | 10 84 . 110 58 104 5 Thermal 92 | . 17 . 40 . 17 18 Explosive 29 | . . . 22 4 3 . Electromagnetic 14 | . . . . . 14 . Robot Hit Streak 14 | 3 11 . 14 10 9 2 Robot Miss Streak 5 | 1 3 . 3 2 5 3 Penetration Max 1 | . . . . . 1 . Secondary Targets 7 | . 5 . 2 . . . Max Gunslinging Chain 1 | . 1 . 1 . . . Shots Hit Robots 303 | 6 66 . 105 41 76 9 Core Hits 190 | 2 32 . 84 26 40 6 Critical Hits 35 | . . . 5 1 26 3 Critical Kills 9 | . . . 1 1 5 2 Critical Parts Destroyed 15 | . . . 3 . 11 1 Melee Attacks . | . . . . . . . Impact . | . . . . . . . Slashing . | . . . . . . . Piercing . | . . . . . . . Sneak Attacks . | . . . . . . . Combat Hostiles . | . . . . . . . Follow-up Attacks . | . . . . . . . Damage Inflicted 7360 | 62 999 . 3472 975 1649 203 Guns 3774 | 62 742 . 1198 628 1102 42 Cannons 891 | . 91 . 508 . 131 161 Explosions 2675 | . 146 . 1766 347 416 . Melee . | . . . . . . . Ramming 20 | . 20 . . . . . Kinetic 3575 | 62 681 . 1060 628 1102 42 Thermal 1090 | . 152 . 646 . 131 161 Explosive 2507 | . 146 . 1766 347 248 . Electromagnetic 168 | . . . . . 168 . Impact . | . . . . . . . Slashing . | . . . . . . . Piercing . | . . . . . . . Highest Corruption 5 | . 1 1 5 5 5 5 Average Corruption 3 | . 1 1 5 5 5 5 Corruption Purged . | . . . . . . . Effects 94 | . 3 2 15 30 37 7 Message Errors 22 | . 1 1 3 5 10 2 Matter Fused 21 | . . . 5 9 6 1 Heat Flow Errors 10 | . . . 1 4 4 1 Energy Discharges 7 | . 1 . 1 3 2 . Data Loss (minor) 6 | . . 1 1 2 1 1 Data Loss (major) 2 | . . . 1 . 1 . Misfires 1 | . . . . . 1 . Targeting Errors 23 | . 1 . 2 7 11 2 Weapon Failures 2 | . . . 1 . 1 . Overload Shots . | . . . . . . . Overflow Damage 95 | . 9 . 47 39 . . Projectiles . | . . . . . . . Explosions 95 | . 9 . 47 39 . . Melee . | . . . . . . . Knockbacks 2 | . 2 . . . . . Impact . | . . . . . . . Kinetic 2 | . 2 . . . . . Secondary . | . . . . . . . Self-Inflicted Damage 155 | . 9 . 74 . 72 . Shots 5 | . . . 3 . 2 . Rammed 3 | . 3 . . . . . Targets Rammed 3 | . 3 . . . . . Kicked . | . . . . . . . Crushed . | . . . . . . . Highest Temperature 393 | . 18 . 393 193 330 287 Average Temperature 78 | . 10 . 88 99 74 88 Received Heat Transfer 830 | . 198 . 378 105 140 9 Effects 4 | . . . 2 . 2 . Energy Bleed 1 | . . . . . 1 . Interference 2 | . . . 1 . 1 . Short Circuit 1 | . . . 1 . . . Siege Activations . | . . . . . . . Robots Corrupted 1 | . . . . . 1 . Combat Hostiles . | . . . . . . . Parts Fried . | . . . . . . . Impact Corruptions . | . . . . . . . Robots Melted . | . . . . . . . Combat Hostiles . | . . . . . . . Parts Melted 2 | . . . 2 . . . Heat Transferred 1948 | . 350 . 1221 . 81 296 Parts Sabotaged . | . . . . . . . Parts Stolen . | . . . . . . . Parts Stripped . | . . . . . . . Power Chain Reactions . | . . . . . . . Missiles Intercepted . | . . . . . . . Alert | -11 -10 -10 -9 -9 -9 -8 ------- Run | Scr Mat Min Mat Min Exi Min Peak Influence 905 | 5 364 63 905 486 . 31 Average Influence 349 | 1 189 40 567 390 . 12 Maximum Alert Level 3 | . 1 . 3 2 . . Low Security (%) 33 | 100 53 100 9 . . 100 Level 1 23 | . 46 . 13 42 . . Level 2 25 | . . . 32 57 . . Level 3 17 | . . . 44 . . . Level 4 . | . . . . . . . Level 5 . | . . . . . . . High Security . | . . . . . . . Max Security . | . . . . . . . Squads Dispatched 10 | . 4 1 5 . . . Investigation 3 | . 2 1 . . . . Extermination . | . . . . . . . Reinforcement 6 | . 2 . 4 . . . Assault 1 | . . . 1 . . . Garrison . | . . . . . . . Intercept . | . . . . . . . Construction Impeded . | . . . . . . . Haulers Reinforced . | . . . . . . . Stealth | -11 -10 -10 -9 -9 -9 -8 --------- Run | Scr Mat Min Mat Min Exi Min Distress Signals 6 | . 3 . 3 . . . Communications Jammed . | . . . . . . . Distress Signals . | . . . . . . . Times Spotted 135 | . 27 4 62 16 23 3 Peak Tracking Total 10 | . 8 2 8 4 10 . Tactical Retreats 8 | . 2 . 1 3 2 . Traps | -11 -10 -10 -9 -9 -9 -8 ------- Run | Scr Mat Min Mat Min Exi Min Traps Triggered . | . . . . . . . Indirectly . | . . . . . . . Trap Hack Attempts . | . . . . . . . Triggered . | . . . . . . . Disarmed . | . . . . . . . Reprogrammed . | . . . . . . . Reused . | . . . . . . . Traps Extracted . | . . . . . . . Installed . | . . . . . . . Triggered . | . . . . . . . Machines | -11 -10 -10 -9 -9 -9 -8 ---------- Run | Scr Mat Min Mat Min Exi Min Machines Disabled 18 | . 3 . 3 . 12 . Max in Single Turn 2 | . 2 . 1 . 2 . Machines Sabotaged . | . . . . . . . Garrisons Compromised . | . . . . . . . Overloaded Fab Kills . | . . . . . . . Fab Network Shutdowns . | . . . . . . . Hacking | -11 -10 -10 -9 -9 -9 -8 --------- Run | Scr Mat Min Mat Min Exi Min Machines Accessed 21 | . 8 1 11 . 1 . Terminals 13 | . 6 . 7 . . . Fabricators . | . . . . . . . Repair Stations 3 | . 1 . 2 . . . Recycling Units 2 | . 1 . 1 . . . Scanalyzers 1 | . . . 1 . . . Garrison Access . | . . . . . . . Total Hacks 55 | . 23 1 30 . 1 . Successful 37 | . 11 1 24 . 1 . Failed 18 | . 12 . 6 . . . Catastrophic 2 | . 2 . . . . . Database Lockouts . | . . . . . . . Manual 33 | . 16 . 17 . . . Terminals 37 | . 17 . 20 . . . Fabricators . | . . . . . . . Repair Stations 8 | . 4 . 4 . . . Recycling Units 4 | . 2 . 2 . . . Scanalyzers 4 | . . . 4 . . . Garrison Access . | . . . . . . . Terminal Hacks 11 | . 4 1 5 . 1 . Record 1 | . . . . . 1 . Part Schematic 2 | . 2 . . . . . Open Door 1 | . . 1 . . . . Terminal Index 1 | . 1 . . . . . Repair Station Index 1 | . . . 1 . . . Locate Traps 1 | . . . 1 . . . Recall Investigation 1 | . 1 . . . . . Recall Assault 1 | . . . 1 . . . Zone Layout 2 | . . . 2 . . . Fabricator Hacks . | . . . . . . . Repair Station Hacks 8 | . 4 . 4 . . . Scan Component 4 | . 2 . 2 . . . Repair 4 | . 2 . 2 . . . Recycling Unit Hacks 1 | . . . 1 . . . Retrieve Components 1 | . . . 1 . . . Scanalyzer 4 | . . . 4 . . . Insert Component 2 | . . . 2 . . . Analyze 2 | . . . 2 . . . Garrison Access Hacks . | . . . . . . . Unauthorized Hacks 13 | . 3 . 10 . . . Terminals 13 | . 3 . 10 . . . Track 3 | . . . 3 . . . Botnet 7 | . 3 . 4 . . . Disrupt 2 | . . . 2 . . . Operators 1 | . . . 1 . . . Fabricators . | . . . . . . . Repair Stations . | . . . . . . . Recycling Units . | . . . . . . . Scanalyzers . | . . . . . . . Garrison Access . | . . . . . . . Data Cores Recovered . | . . . . . . . Used . | . . . . . . . Hacking Detections 15 | . 8 . 7 . . . Full Trace Events 2 | . 2 . . . . . Feedback Events . | . . . . . . . Feedback Blocked . | . . . . . . . Robot Schematics Acquired . | . . . . . . . Robots Built . | . . . . . . . Matter . | . . . . . . . Time . | . . . . . . . Total Robot Build Rating . | . . . . . . . Part Schematics Acquired 4 | . 2 . 2 . . . Parts Built . | . . . . . . . Matter . | . . . . . . . Time . | . . . . . . . Total Part Build Rating . | . . . . . . . Parts Repaired 4 | . 2 . 2 . . . Time 128 | . 52 . 76 . . . Parts Recycled . | . . . . . . . Recycled Matter . | . . . . . . . Retrieved Matter . | . . . . . . . Retrieved Components . | . . . . . . . Parts Scanalyzed 2 | . . . 2 . . . Part Schematics Acquired 2 | . . . 2 . . . Parts Damaged . | . . . . . . . Bothacking | -11 -10 -10 -9 -9 -9 -8 ------------ Run | Scr Mat Min Mat Min Exi Min Used RIF Installer . | . . . . . . . Robots Hacked . | . . . . . . . Non-combat . | . . . . . . . Combat . | . . . . . . . Robot Hacks Applied . | . . . . . . . Relay Couplers Released . | . . . . . . . Robots Rewired . | . . . . . . . Allies Hacked . | . . . . . . . Hacks Repelled . | . . . . . . . Allies | -11 -10 -10 -9 -9 -9 -8 -------- Run | Scr Mat Min Mat Min Exi Min Total Allies 4 | . . . . 4 . . Largest Group 3 | . . . . 3 3 . Highest-Rated Group 40 | . . . . 40 40 . Highest-Rated Ally 31 | . . . . 31 16 . Total Orders 3 | . . . . . 3 . STAY 2 | . . . . . 2 . FOLLOW 1 | . . . . . 1 . Ally Attacks 9 | . . . . 3 6 . Total Damage 143 | . . . . 65 78 . Kills 4 | . . . . 3 1 . Allies Corrupted . | . . . . . . . Allies Melted . | . . . . . . . Intel | -11 -10 -10 -9 -9 -9 -8 ------- Run | Scr Mat Min Mat Min Exi Min Robot Analysis Total . | . . . . . . . Derelict Logs Recovered 3 | . . 2 . 1 . . Drone Launches . | . . . . . . . Drone Recoveries . | . . . . . . . Exploration | -11 -10 -10 -9 -9 -9 -8 ------------- Run | Scr Mat Min Mat Min Exi Min Turns Passed 5836 | 96 927 616 1853 1038 1082 224 Spaces Moved 3914 | 78 673 544 1141 817 520 141 Core 6 | 6 . . . . . . Treads 99 | . 19 . 11 . 69 . Legs 369 | . . . . . 297 72 Wheels 3440 | 72 654 544 1130 817 154 69 Hover . | . . . . . . . Flight . | . . . . . . . Fastest Speed 50 | 50 90 110 110 110 110 100 Average Speed 115 | 87 105 110 111 110 149 130 Slowest Speed 200 | 100 160 110 180 110 200 160 Overloaded Moves . | . . . . . . . Propulsion Burnouts . | . . . . . . . Robots Hopped . | . . . . . . . Cave-ins Triggered . | . . . . . . . Exploration Rate (%) 66 | 4 90 86 80 99 74 33 Regions Visited 6 Branch Regions 4 Pre-discovered Areas 2 | . . 1 . . 1 . Known Exits Taken . | . . . . . . . Unknown Exits Taken 6 | 1 1 1 1 1 1 . Scrap Searched 4 | . . 1 . 3 . . Spaces Dug 13 | . . . 13 . . . Terrain Destroyed 254 | . 24 . 162 43 21 4 Melee . | . . . . . . . Projectile 14 | . . . . . 10 4 AOE 240 | . 24 . 162 43 11 . Actions | -11 -10 -10 -9 -9 -9 -8 --------- Run | Scr Mat Min Mat Min Exi Min Total 4764 | 93 787 561 1538 894 723 168 Wait 314 | . 30 17 201 31 33 2 Move 3908 | 77 672 543 1140 816 519 141 Hop . | . . . . . . . Pick Up 65 | 5 15 1 21 3 17 3 Fast Attach 17 | 6 2 . 5 . 3 1 Attach 21 | . 5 . 6 . 10 . Detach 4 | . . . 3 . . 1 Swap 64 | . 6 . 40 7 8 3 Drop 41 | . 2 . 21 4 11 3 Fire 327 | 5 52 . 101 33 122 14 Melee . | . . . . . . . Ram 3 | . 3 . . . . . Kick . | . . . . . . . Crush . | . . . . . . . Escape Stasis . | . . . . . . . Rewire . | . . . . . . . Trap . | . . . . . . . Miscellaneous . | . . . . . . . Route ------- -11/Scrapyard -10/Materials (discovered 5 exits: *Mat x3 / *Min x2) -10/Mines -9/Materials (discovered 4 exits: [*Mat x3] / [*Min]) -9/Mines (discovered 4 exits: [*Mat x2] / *Exi / [*Zio]) -9/Exiles (discovered 2 exits: [*Min x2]) -8/Mines (discovered 1 exit: [*Mat]) History --------- Turn | Location | Event 22 | -11/Scrapyard | Discovered new exit (range 15) 97 | -11/Scrapyard | Entered Materials 213 | -10/Materials | Discovered new exit (range 13) 281 | -10/Materials | Core integrity fell below 50% 315 | -10/Materials | Build established: Mutant 321 | -10/Materials | Destroyed 7 combat bots 359 | -10/Materials | Discovered new exit (range 16) 540 | -10/Materials | Discovered new exit (range 15) 571 | -10/Materials | Repaired Lgt. Treads 602 | -10/Materials | Repaired Lgt. Treads 905 | -10/Materials | Core integrity fell below 20% 930 | -10/Materials | Discovered new exit (range 6) 1003 | -10/Materials | Discovered new exit (range 6) 1024 | -10/Materials | Entered Mines 1065 | -10/Mines | Learned location of Storage (-7) 1274 | -10/Mines | Learned Materials terminal intel 1457 | -10/Mines | Met a Derelict shopkeep closing up shop 1528 | -10/Mines | Discovered new exit (range 3) 1640 | -10/Mines | Entered Materials 1640 | -9/Materials | Evolved 2 slots: Utility x2 1641 | -9/Materials | Loaded intel: 12 terminal locations 1847 | -9/Materials | Destroyed 7 combat bots 1915 | -9/Materials | Discovered new exit (range 3) 2595 | -9/Materials | Repaired Hvy. Armor Plating 2761 | -9/Materials | Discovered new exit (range 13) 2840 | -9/Materials | First assault squad dispatched 3134 | -9/Materials | Discovered new exit (range 8) 3208 | -9/Materials | Repaired Hvy. Armor Plating 3471 | -9/Materials | Discovered new exit (range 15) 3493 | -9/Materials | Entered Mines 3515 | -9/Mines | Met a Derelict bent on vengeance 3706 | -9/Mines | Learned location of 1 exit from Lower Caves 3827 | -9/Mines | Received a Rocket Launcher from a helpful Derelict 3857 | -9/Mines | A Derelict revealed a hidden shortcut to a safe place 3867 | -9/Mines | Discovered new exit (range 6) 4130 | -9/Mines | Received a Mining Laser from a helpful Derelict 4310 | -9/Mines | Discovered new exit (range 6) 4402 | -9/Mines | Assisted by bots powering up and referring to "LRC-V3" 4517 | -9/Mines | Deemed a non-threat by the Exiles lab entrance 4519 | -9/Mines | Discovered new exit (range 5) 4531 | -9/Mines | Entered Exiles 4531 | -9/Exiles | Accompanied by 3 allies 4568 | -9/Exiles | Discovered new exit (range 14) 4623 | -9/Exiles | Met 8R-AWN 4693 | -9/Exiles | Met EX-HEX 4718 | -9/Exiles | Attacked by the Exiles 4749 | -9/Exiles | Core integrity fell below 50% 4773 | -9/Exiles | Lost 3 parts (2n1u) 4806 | -9/Exiles | Core integrity fell below 20% 4885 | -9/Exiles | Destroyed 8R-AWN 4891 | -9/Exiles | Lost 7 parts (1p2n1u3w) 4905 | -9/Exiles | Found Prototype Ballistic Gun 4905 | -9/Exiles | Identified 8R-AWN's Boregun 4914 | -9/Exiles | Found Prototype Processor 5244 | -9/Exiles | Destroyed EX-DEC 5291 | -9/Exiles | Found Deploy-a-Sentry 5369 | -9/Exiles | Destroyed EX-HEX 5389 | -9/Exiles | Destroyed EX-BIN 5430 | -9/Exiles | Build established: Scavenger-Mutant 5544 | -9/Exiles | Learned location of Zion (-7) 5595 | -9/Exiles | Discovered new exit (range 14) 5613 | -9/Exiles | Left Exiles lab with Deploy-a-Sentry 5613 | -9/Exiles | Entered Mines 5837 | -8/Mines | Discovered new exit (range 10) 5837 | -8/Mines | Destroyed by G-47 Trooper with Particle Gun Last Messages --------------- 05743_ Acquired Wheel. 05747_ Dropped Mak. Leg. 05748_ Acquired Wheel. 05751_ Dropped Aluminum Leg. 05751_ Dropped Mak. Leg. 05752_ System corrupted: Adv. Beam Cannon targeting data glitched. 05752_ U-05 Engineer destroyed. 05757_ Acquired Com. Wheel. 05759_ Acquired 10 matter. 05760_ System corrupted: Heat flow error (+261). 05783_ K-01 Serf destroyed. 05786_ Acquired 18 matter. 05788_ Acquired Wheel. 05797_ T-07 Excavator is excavating. 05811_ Extracted 18 matter. 05813_ R-06 Scavenger collects Sml. Matter Pod. 05820_ System corrupted: Component data lost. 05825_ K-01 Serf destroyed. 05827_ Acquired 15 matter. 05837_ EXIT=FOUND Map ----- +----------------------------------------------------+ | | | | | | | | | | | | | | | | | | | ?????????????????????????????????????????????????? | | ?????????????????????????????????????????????????? | | ?????????????????????????????????????????????????? | | ?????????????????????????????????????????????????? | | ?????????????????????????????????????????????????? | | ?????????????????????????????????????????????????? | | ?????????????????????????????????????????????????? | | ?????????????????????????????????????????????????? | | ?????????????????????????????????????????????????? | | ?????????????????????????????????????????????????? | | ???????????????????????????????????######## #???? | | ???????????????????????????????????# #????? | | ???????????????????????????????????# ########????? | | ???????????????????????????????????# #???????????? | | ???????????? """???????????????????# #???????????? | | ??????????# #####????????# #???????????? | | ??????????# gg @#????????# ########????? | | ??????????# g< ### #????????# ## ####?? | | ????????### ????????# ########## ## #?? | | ???????? ??????????????# * !## ## #?? | | ????????# #?????????????######### ## ## """ #????? | | ????????# #???????????####??????# ## """ #????? | | ????????# #??????????## ##?????# ## ## """ #????? | | ????????# #??????????# ##????# ## """ #????? | | ####????# #??????????# ####?#### ## #????? | | # ???# #??????????## =#???## ## #????? | | ??# #???????????## ### #??## #######????? | | ## ###??#####???# #?# #?## #?????????? | | # #?## ###?# ###=### #?????????? | | ?## ### ### ##=!*# ##?????????? | | ??## ##### ## ####=## ##??????????? | | ?????????# #### #?##!#### #???????????? | | ?????????# #??# #?##=#??# #???????????? | | ?????????# #??## ##!# #### #???????????? | | ????????## ##??### # # ! #???????????? | | ????????# ###??### # ##?########???????????? | | ????????## ##???# ## #????????????????????? | | ?????????## ###?# ### ##??????????????????? | | ??????????## ### ### ##?????????????????? | | ???????????## ## #?????????????????? | | ????????????## #?????????????????? | +----------------------------------------------------+ Best States ------------- Heat Dissipation 28 Energy Generation 14 Energy Capacity 280 Matter Stores 300 Matter Capacity 300 Sight Range 16 Terrain Scan Density 10 Armor Coverage 600 Weapon Cycling 25 Evasion (%) 42 Armor Integrity Analysis 33 Recoil Reduction 2 Item Schematics ----------------- Lrg. Storage Unit | -10/Materials | Hacked Med. Storage Unit | -10/Materials | Hacked Armor Integrity Analyzer | -9/Materials | Scanalyzed Hvy. Armor Plating | -9/Materials | Scanalyzed Robot Schematics ------------------ None Fabricated ------------ Nothing Alien Tech Used ----------------- None Achievements -------------- None Challenges ------------ None Game ------ Seed AlertPhaseArmor Manual? 0 Play Time 00:57:21 Cumulative 1048.6 hours Start 2020.06.27 @ 10:33:24 End 2020.06.27 @ 11:38:03 Sessions 1 Manual Loads 0 Difficulty Rogue Special Mode None Game No. 398 Rogue 398 Adventurer 0 Explorer 0 Win Type - Total 25 Types 13/1/7/0/0/0/4 Lore% 96 Gallery% 98 Achievement% 83 Wizard Run 0 Options --------- ASCII 0 Keyboard 0 Movement Vi Keybinds 0 Fullscreen 0 Font 12/Crisp Map View 76x50 Tactical HUD 1 Map Filters NONE Filters NONE Steam 1 RUN: dd4548ae-5426-4c5e-831c-923a539d1fbe